[Event "Titled Tuesday Blitz April 26 Late 2022"]
[White "Ansh M Shah"]
[Black "Migot, Tangi"]
[WhiteFideId "25033379"]
[BlackFideId "662445"]
[WhiteElo "1819"]
[BlackElo "2512"]
[Result "0-1"]
[Round "04"]
[TimeControl "180+1"]
[Date "2022.04.26"]
[WhiteClock "0:01:22"]
[BlackClock "0:01:30"]

1. d4 {[%clk 0:03:00]}  Nf6 {[%clk 0:02:59]} 2. c4 {[%clk 0:03:01]}  g6 {[%clk 0:02:59]} 3. Nf3 {[%clk 0:03:01]}  Bg7 {[%clk 0:02:59]} 4. g3 {[%clk 0:03:02]}  d5 {[%clk 0:02:59]} 5. Bg2 {[%clk 0:03:03]}  dxc4 {[%clk 0:02:59]} 6. O-O {[%clk 0:03:03]}  O-O {[%clk 0:02:59]} 7. Ne5 {[%clk 0:03:02]}  Ng4 {[%clk 0:02:58]} 8. Nxc4 {[%clk 0:02:54]}  Qxd4 {[%clk 0:02:55]} 9. Qxd4 {[%clk 0:02:48]}  Bxd4 {[%clk 0:02:56]} 10. h3 {[%clk 0:02:46]}  Nf6 {[%clk 0:02:51]} 11. e3 {[%clk 0:02:41]}  Bb6 {[%clk 0:02:51]} 12. Nc3 {[%clk 0:02:39]}  c6 {[%clk 0:02:50]} 13. b3 {[%clk 0:02:36]}  Be6 {[%clk 0:02:45]} 14. Nxb6 {[%clk 0:02:35]}  axb6 {[%clk 0:02:46]} 15. Na4 {[%clk 0:02:35]}  Nbd7 {[%clk 0:02:45]} 16. Ba3 {[%clk 0:02:35]}  b5 {[%clk 0:02:44]} 17. Bxe7 {[%clk 0:02:36]}  bxa4 {[%clk 0:02:44]} 18. Bxf8 {[%clk 0:02:36]}  Kxf8 {[%clk 0:02:45]} 19. bxa4 {[%clk 0:02:35]}  Rxa4 {[%clk 0:02:44]} 20. Rab1 {[%clk 0:02:35]}  Nc5 {[%clk 0:02:39]} 21. Rfc1 {[%clk 0:02:34]}  Nfd7 {[%clk 0:02:39]} 22. Rb2 {[%clk 0:02:23]}  Rxa2 {[%clk 0:02:35]} 23. Rxa2 {[%clk 0:02:22]}  Bxa2 {[%clk 0:02:36]} 24. Ra1 {[%clk 0:02:22]}  Be6 {[%clk 0:02:33]} 25. g4 {[%clk 0:02:20]}  Ke7 {[%clk 0:02:29]} 26. f4 {[%clk 0:02:21]}  Kd6 {[%clk 0:02:28]} 27. e4 {[%clk 0:02:21]}  b5 {[%clk 0:02:20]} 28. e5+ {[%clk 0:01:54]}  Kc7 {[%clk 0:02:20]} 29. Rf1 {[%clk 0:01:54]}  f5 {[%clk 0:02:09]} 30. exf6 {[%clk 0:01:46]}  Nxf6 {[%clk 0:02:09]} 31. f5 {[%clk 0:01:32]}  gxf5 {[%clk 0:02:09]} 32. g5 {[%clk 0:01:33]}  Nfe4 {[%clk 0:02:05]} 33. h4 {[%clk 0:01:29]}  b4 {[%clk 0:02:02]} 34. Bh3 {[%clk 0:01:25]}  b3 {[%clk 0:01:52]} 35. Bxf5 {[%clk 0:01:24]}  Bxf5 {[%clk 0:01:51]} 36. Rxf5 {[%clk 0:01:25]}  b2 {[%clk 0:01:50]} 37. Rf1 {[%clk 0:01:25]}  Nd2 {[%clk 0:01:47]} 38. h5 {[%clk 0:01:24]}  Nxf1 {[%clk 0:01:38]} 39. g6 {[%clk 0:01:23]}  hxg6 {[%clk 0:01:36]} 40. hxg6 {[%clk 0:01:24]}  b1=Q {[%clk 0:01:35]} 41. g7 {[%clk 0:01:24]}  Nd2+ {[%clk 0:01:35]} 42. Kf2 {[%clk 0:01:23]}  Qg6 {[%clk 0:01:35]} 43. g8=Q {[%clk 0:01:23]}  Qxg8 {[%clk 0:01:35]} 44. Ke2 {[%clk 0:01:24]}  Qe6+ {[%clk 0:01:33]} 45. Kd1 {[%clk 0:01:25]}  Nc4 {[%clk 0:01:32]} 46. Kc2 {[%clk 0:01:25]}  Qe3 {[%clk 0:01:31]} 47. Kb1 {[%clk 0:01:24]}  Qe2 {[%clk 0:01:30]} 48. Ka1 {[%clk 0:01:22]}  Qb2# {[%clk 0:01:30]} 0-1


[Site "https://www.chess.com"]

[Event "Titled Tuesday Blitz April 26 Late 2022"]
[White "Atanejhad, Sahebali"]
[Black "Shuvalova, Polina"]
[WhiteFideId "12506664"]
[BlackFideId "24171760"]
[WhiteElo "1953"]
[BlackElo "2355"]
[Result "1-0"]
[Round "04"]
[TimeControl "180+1"]
[Date "2022.04.26"]
[WhiteClock "0:01:08"]
[BlackClock "0:00:25"]

1. d4 {[%clk 0:03:00]}  Nf6 {[%clk 0:02:59]} 2. c4 {[%clk 0:03:01]}  g6 {[%clk 0:02:59]} 3. Nc3 {[%clk 0:03:00]}  d5 {[%clk 0:02:58]} 4. Nf3 {[%clk 0:03:00]}  Bg7 {[%clk 0:02:58]} 5. Qb3 {[%clk 0:03:00]}  dxc4 {[%clk 0:02:57]} 6. Qxc4 {[%clk 0:03:01]}  O-O {[%clk 0:02:55]} 7. Bf4 {[%clk 0:03:02]}  c6 {[%clk 0:02:53]} 8. e3 {[%clk 0:03:01]}  Nbd7 {[%clk 0:02:53]} 9. Be2 {[%clk 0:03:01]}  Nb6 {[%clk 0:02:52]} 10. Qb3 {[%clk 0:02:59]}  Bf5 {[%clk 0:02:52]} 11. O-O {[%clk 0:02:58]}  Nfd5 {[%clk 0:02:49]} 12. Nxd5 {[%clk 0:02:57]}  Qxd5 {[%clk 0:02:48]} 13. Qxd5 {[%clk 0:02:53]}  Nxd5 {[%clk 0:02:38]} 14. Bg3 {[%clk 0:02:52]}  Rfe8 {[%clk 0:02:36]} 15. a3 {[%clk 0:02:50]}  a5 {[%clk 0:02:34]} 16. Rac1 {[%clk 0:02:50]}  f6 {[%clk 0:02:30]} 17. Rfd1 {[%clk 0:02:48]}  g5 {[%clk 0:02:25]} 18. h3 {[%clk 0:02:46]}  Bg6 {[%clk 0:02:15]} 19. Bc4 {[%clk 0:02:43]}  Bf7 {[%clk 0:02:07]} 20. Nd2 {[%clk 0:02:30]}  f5 {[%clk 0:02:04]} 21. Be5 {[%clk 0:02:26]}  Bxe5 {[%clk 0:01:58]} 22. dxe5 {[%clk 0:02:27]}  a4 {[%clk 0:01:54]} 23. e4 {[%clk 0:02:25]}  fxe4 {[%clk 0:01:48]} 24. Nxe4 {[%clk 0:02:24]}  h6 {[%clk 0:01:44]} 25. Nc5 {[%clk 0:02:22]}  b6 {[%clk 0:01:39]} 26. e6 {[%clk 0:02:17]}  Bh5 {[%clk 0:01:32]} 27. g4 {[%clk 0:02:16]}  bxc5 {[%clk 0:01:27]} 28. gxh5 {[%clk 0:02:15]}  Nf4 {[%clk 0:01:27]} 29. Bf1 {[%clk 0:01:58]}  Red8 {[%clk 0:01:11]} 30. h4 {[%clk 0:01:31]}  gxh4 {[%clk 0:01:03]} 31. Kh2 {[%clk 0:01:28]}  Rxd1 {[%clk 0:01:00]} 32. Rxd1 {[%clk 0:01:29]}  Rb8 {[%clk 0:01:01]} 33. Rd2 {[%clk 0:01:26]}  Kg7 {[%clk 0:00:59]} 34. Rc2 {[%clk 0:01:23]}  Nxe6 {[%clk 0:00:57]} 35. Bh3 {[%clk 0:01:20]}  Nd4 {[%clk 0:00:54]} 36. Rxc5 {[%clk 0:01:19]}  Rxb2 {[%clk 0:00:55]} 37. Kg2 {[%clk 0:01:19]}  Kf6 {[%clk 0:00:52]} 38. Rc4 {[%clk 0:01:17]}  e5 {[%clk 0:00:48]} 39. Bd7 {[%clk 0:01:15]}  Ra2 {[%clk 0:00:34]} 40. Rxa4 {[%clk 0:01:12]}  c5 {[%clk 0:00:33]} 41. Ra6+ {[%clk 0:01:08]}  Kg5 {[%clk 0:00:33]} 42. Rg6+ {[%clk 0:01:07]}  Kxh5 {[%clk 0:00:28]} 43. Be8 {[%clk 0:01:08]}  h3+ {[%clk 0:00:25]} 44. Kxh3 {[%clk 0:01:08]} 1-0


[Site "https://www.chess.com"]

[Event "Titled Tuesday Blitz April 26 Late 2022"]
[White "Balint, Vilmos"]
[Black "Kosteniuk, Alexandra"]
[WhiteFideId "718050"]
[BlackFideId "4128125"]
[WhiteElo "2059"]
[BlackElo "2469"]
[Result "1/2-1/2"]
[Round "04"]
[TimeControl "180+1"]
[Date "2022.04.26"]
[WhiteClock "0:00:53"]
[BlackClock "0:00:28"]

1. d4 {[%clk 0:03:00]}  Nf6 {[%clk 0:02:59]} 2. c4 {[%clk 0:02:59]}  g6 {[%clk 0:02:59]} 3. Nc3 {[%clk 0:02:59]}  d6 {[%clk 0:02:59]} 4. f3 {[%clk 0:03:00]}  Bg7 {[%clk 0:02:59]} 5. e4 {[%clk 0:03:00]}  Nc6 {[%clk 0:02:57]} 6. Be3 {[%clk 0:03:00]}  e5 {[%clk 0:02:57]} 7. d5 {[%clk 0:02:56]}  Ne7 {[%clk 0:02:57]} 8. Bd3 {[%clk 0:02:56]}  Nh5 {[%clk 0:02:56]} 9. Nge2 {[%clk 0:02:56]}  f5 {[%clk 0:02:55]} 10. c5 {[%clk 0:02:56]}  fxe4 {[%clk 0:02:52]} 11. Bxe4 {[%clk 0:02:52]}  Nf5 {[%clk 0:02:50]} 12. Bxf5 {[%clk 0:02:50]}  gxf5 {[%clk 0:02:51]} 13. cxd6 {[%clk 0:02:49]}  cxd6 {[%clk 0:02:51]} 14. O-O {[%clk 0:02:46]}  f4 {[%clk 0:02:49]} 15. Bf2 {[%clk 0:02:46]}  O-O {[%clk 0:02:49]} 16. Ne4 {[%clk 0:02:45]}  Bf5 {[%clk 0:02:47]} 17. N2c3 {[%clk 0:02:46]}  Kh8 {[%clk 0:02:44]} 18. Qb3 {[%clk 0:02:45]}  Qd7 {[%clk 0:02:38]} 19. Rac1 {[%clk 0:02:45]}  Nf6 {[%clk 0:02:30]} 20. Ng5 {[%clk 0:02:41]}  Rfe8 {[%clk 0:02:25]} 21. Qb5 {[%clk 0:02:38]}  Qe7 {[%clk 0:02:21]} 22. Nge4 {[%clk 0:02:27]}  Nxe4 {[%clk 0:02:17]} 23. Nxe4 {[%clk 0:02:24]}  Bxe4 {[%clk 0:02:18]} 24. fxe4 {[%clk 0:02:25]}  f3 {[%clk 0:02:18]} 25. gxf3 {[%clk 0:02:22]}  Bh6 {[%clk 0:02:18]} 26. Rc3 {[%clk 0:02:19]}  Rg8+ {[%clk 0:02:17]} 27. Kh1 {[%clk 0:02:19]}  Bf4 {[%clk 0:02:16]} 28. Rg1 {[%clk 0:02:09]}  Rxg1+ {[%clk 0:02:14]} 29. Bxg1 {[%clk 0:02:09]}  Rg8 {[%clk 0:02:14]} 30. Qf1 {[%clk 0:01:57]}  b6 {[%clk 0:02:06]} 31. Rc2 {[%clk 0:01:49]}  Qd7 {[%clk 0:02:00]} 32. Rg2 {[%clk 0:01:49]}  Rc8 {[%clk 0:02:00]} 33. Bf2 {[%clk 0:01:38]}  Rc1 {[%clk 0:01:56]} 34. Be1 {[%clk 0:01:38]}  Be3 {[%clk 0:01:43]} 35. Re2 {[%clk 0:01:36]}  Bc5 {[%clk 0:01:40]} 36. f4 {[%clk 0:01:29]}  exf4 {[%clk 0:01:27]} 37. Qxf4 {[%clk 0:01:28]}  Qg7 {[%clk 0:01:26]} 38. Qf1 {[%clk 0:01:13]}  Bb4 {[%clk 0:01:18]} 39. a3 {[%clk 0:01:11]}  Bxe1 {[%clk 0:01:15]} 40. Rxe1 {[%clk 0:01:12]}  Rxe1 {[%clk 0:01:15]} 41. Qxe1 {[%clk 0:01:12]}  Qxb2 {[%clk 0:01:13]} 42. Qf1 {[%clk 0:01:06]}  Kg7 {[%clk 0:00:57]} 43. Qf5 {[%clk 0:00:59]}  Qf6 {[%clk 0:00:51]} 44. Qd7+ {[%clk 0:00:58]}  Kh6 {[%clk 0:00:51]} 45. Qh3+ {[%clk 0:00:58]}  Kg6 {[%clk 0:00:50]} 46. Qg4+ {[%clk 0:00:58]}  Kf7 {[%clk 0:00:44]} 47. Qd7+ {[%clk 0:00:58]}  Qe7 {[%clk 0:00:38]} 48. Qf5+ {[%clk 0:00:58]}  Kg7 {[%clk 0:00:39]} 49. Qg4+ {[%clk 0:00:57]}  Kf8 {[%clk 0:00:38]} 50. Qc8+ {[%clk 0:00:56]}  Qe8 {[%clk 0:00:34]} 51. Qf5+ {[%clk 0:00:56]}  Qf7 {[%clk 0:00:35]} 52. Qc8+ {[%clk 0:00:55]}  Kg7 {[%clk 0:00:35]} 53. Qg4+ {[%clk 0:00:55]}  Qg6 {[%clk 0:00:33]} 54. Qd7+ {[%clk 0:00:55]}  Kh6 {[%clk 0:00:33]} 55. Qh3+ {[%clk 0:00:56]}  Kg7 {[%clk 0:00:28]} 56. Qd7+ {[%clk 0:00:56]}  Kg8 {[%clk 0:00:28]} 57. Qd8+ {[%clk 0:00:52]}  Kf7 {[%clk 0:00:27]} 58. Qd7+ {[%clk 0:00:53]}  Kf8 {[%clk 0:00:28]} 59. Qd8+ {[%clk 0:00:53]}  Kg7 {[%clk 0:00:28]} 60. Qd7+ {[%clk 0:00:53]} 1/2-1/2


[Site "https://www.chess.com"]

[Event "Titled Tuesday Blitz April 26 Late 2022"]
[White "Bas Mas, Jose Joaquin"]
[Black "Winkels, Marcel"]
[WhiteFideId "22219064"]
[BlackFideId "1003887"]
[WhiteElo "2212"]
[BlackElo "1900"]
[Result "1-0"]
[Round "04"]
[TimeControl "180+1"]
[Date "2022.04.26"]
[WhiteClock "0:01:15"]
[BlackClock "0:01:14"]

1. e4 {[%clk 0:03:00]}  c5 {[%clk 0:02:58]} 2. Nc3 {[%clk 0:03:00]}  d6 {[%clk 0:02:58]} 3. f4 {[%clk 0:02:58]}  Nc6 {[%clk 0:02:58]} 4. Bb5 {[%clk 0:02:58]}  Bd7 {[%clk 0:02:57]} 5. Bxc6 {[%clk 0:02:57]}  Bxc6 {[%clk 0:02:57]} 6. Nf3 {[%clk 0:02:58]}  g6 {[%clk 0:02:54]} 7. O-O {[%clk 0:02:58]}  Bg7 {[%clk 0:02:54]} 8. d3 {[%clk 0:02:58]}  e6 {[%clk 0:02:54]} 9. Qe1 {[%clk 0:02:59]}  Ne7 {[%clk 0:02:53]} 10. Qh4 {[%clk 0:02:58]}  O-O {[%clk 0:02:47]} 11. f5 {[%clk 0:02:47]}  exf5 {[%clk 0:02:45]} 12. Bg5 {[%clk 0:02:47]}  f6 {[%clk 0:02:45]} 13. Bh6 {[%clk 0:02:45]}  fxe4 {[%clk 0:02:41]} 14. dxe4 {[%clk 0:02:37]}  b5 {[%clk 0:02:28]} 15. Bxg7 {[%clk 0:02:31]}  Kxg7 {[%clk 0:02:27]} 16. Rad1 {[%clk 0:02:26]}  b4 {[%clk 0:02:25]} 17. Ne2 {[%clk 0:02:18]}  Bb5 {[%clk 0:02:19]} 18. Rfe1 {[%clk 0:02:17]}  Nc6 {[%clk 0:02:16]} 19. Nf4 {[%clk 0:02:10]}  Bc4 {[%clk 0:02:05]} 20. b3 {[%clk 0:02:08]}  Bf7 {[%clk 0:02:02]} 21. Qg3 {[%clk 0:02:03]}  Qe7 {[%clk 0:01:47]} 22. Rxd6 {[%clk 0:01:35]}  Ne5 {[%clk 0:01:31]} 23. Rxf6 {[%clk 0:01:30]}  Kxf6 {[%clk 0:01:17]} 24. Qh4+ {[%clk 0:01:19]}  g5 {[%clk 0:01:14]} 25. Qxg5# {[%clk 0:01:15]} 1-0


[Site "https://www.chess.com"]

[Event "Titled Tuesday Blitz April 26 Late 2022"]
[White "Batsiashvili, Nino"]
[Black "Tristan, Leonardo"]
[WhiteFideId "13602993"]
[BlackFideId "113816"]
[WhiteElo "2499"]
[BlackElo "2729"]
[Result "0-1"]
[Round "04"]
[TimeControl "180+1"]
[Date "2022.04.26"]
[WhiteClock "0:02:07"]
[BlackClock "0:02:31"]

1. d4 {[%clk 0:02:56]}  d5 {[%clk 0:03:00]} 2. c4 {[%clk 0:02:56]}  e6 {[%clk 0:03:00]} 3. Nf3 {[%clk 0:02:55]}  Nf6 {[%clk 0:03:01]} 4. g3 {[%clk 0:02:55]}  Be7 {[%clk 0:03:01]} 5. Bg2 {[%clk 0:02:56]}  O-O {[%clk 0:03:02]} 6. O-O {[%clk 0:02:56]}  dxc4 {[%clk 0:03:02]} 7. Na3 {[%clk 0:02:56]}  Bxa3 {[%clk 0:02:58]} 8. bxa3 {[%clk 0:02:56]}  Nbd7 {[%clk 0:02:54]} 9. Qc2 {[%clk 0:02:53]}  Nb6 {[%clk 0:02:53]} 10. a4 {[%clk 0:02:44]}  a5 {[%clk 0:02:53]} 11. Ba3 {[%clk 0:02:44]}  Re8 {[%clk 0:02:51]} 12. Rfd1 {[%clk 0:02:28]}  Bd7 {[%clk 0:02:51]} 13. Rdb1 {[%clk 0:02:15]}  Bxa4 {[%clk 0:02:50]} 14. Qc1 {[%clk 0:02:15]}  Bc6 {[%clk 0:02:36]} 15. Bc5 {[%clk 0:02:08]}  Nfd7 {[%clk 0:02:31]} 16. Qxc4 {[%clk 0:02:07]}  Nxc4 {[%clk 0:02:31]} 0-1


[Site "https://www.chess.com"]

[Event "Titled Tuesday Blitz April 26 Late 2022"]
[White "Bluebaum, Matthias"]
[Black "Nakamura, Hikaru"]
[WhiteFideId "24651516"]
[BlackFideId "2016192"]
[WhiteElo "2550"]
[BlackElo "2850"]
[Result "1/2-1/2"]
[Round "04"]
[TimeControl "180+1"]
[Date "2022.04.26"]
[WhiteClock "0:00:40"]
[BlackClock "0:01:27"]

1. d4 {[%clk 0:03:00]}  Nf6 {[%clk 0:02:53]} 2. c4 {[%clk 0:03:00]}  e6 {[%clk 0:02:52]} 3. Nc3 {[%clk 0:03:01]}  Bb4 {[%clk 0:02:52]} 4. e3 {[%clk 0:03:01]}  O-O {[%clk 0:02:51]} 5. Bd3 {[%clk 0:03:00]}  c5 {[%clk 0:02:49]} 6. Ne2 {[%clk 0:02:59]}  d5 {[%clk 0:02:49]} 7. cxd5 {[%clk 0:03:00]}  cxd4 {[%clk 0:02:49]} 8. exd4 {[%clk 0:03:01]}  Nxd5 {[%clk 0:02:49]} 9. O-O {[%clk 0:03:01]}  Nc6 {[%clk 0:02:49]} 10. a3 {[%clk 0:03:02]}  Bd6 {[%clk 0:02:49]} 11. Re1 {[%clk 0:03:02]}  Re8 {[%clk 0:02:46]} 12. Bc2 {[%clk 0:03:03]}  Bf8 {[%clk 0:02:45]} 13. Ng3 {[%clk 0:02:53]}  g6 {[%clk 0:02:42]} 14. Nge4 {[%clk 0:02:42]}  h6 {[%clk 0:02:42]} 15. Nxd5 {[%clk 0:02:28]}  exd5 {[%clk 0:02:42]} 16. Nf6+ {[%clk 0:02:28]}  Qxf6 {[%clk 0:02:38]} 17. Rxe8 {[%clk 0:02:28]}  Nxd4 {[%clk 0:02:39]} 18. Bd3 {[%clk 0:01:29]}  Qc6 {[%clk 0:02:32]} 19. Qe1 {[%clk 0:01:16]}  Ne6 {[%clk 0:02:30]} 20. Rxf8+ {[%clk 0:01:09]}  Nxf8 {[%clk 0:02:31]} 21. Bxh6 {[%clk 0:01:09]}  Bf5 {[%clk 0:02:00]} 22. Qe5 {[%clk 0:00:54]}  f6 {[%clk 0:02:00]} 23. Qe7 {[%clk 0:00:47]}  Qd7 {[%clk 0:01:57]} 24. Bxf8 {[%clk 0:00:39]}  Qxe7 {[%clk 0:01:53]} 25. Bxe7 {[%clk 0:00:40]}  Bxd3 {[%clk 0:01:54]} 26. Bxf6 {[%clk 0:00:41]}  Re8 {[%clk 0:01:51]} 27. f3 {[%clk 0:00:37]}  Re2 {[%clk 0:01:50]} 28. Bc3 {[%clk 0:00:38]}  Bc2 {[%clk 0:01:47]} 29. Re1 {[%clk 0:00:36]}  Rxe1+ {[%clk 0:01:44]} 30. Bxe1 {[%clk 0:00:37]}  Kf7 {[%clk 0:01:43]} 31. Bf2 {[%clk 0:00:35]}  a6 {[%clk 0:01:43]} 32. Bd4 {[%clk 0:00:36]}  Bb1 {[%clk 0:01:38]} 33. Kf2 {[%clk 0:00:36]}  Bc2 {[%clk 0:01:39]} 34. g4 {[%clk 0:00:36]}  Bd1 {[%clk 0:01:39]} 35. Kg3 {[%clk 0:00:35]}  Be2 {[%clk 0:01:38]} 36. h4 {[%clk 0:00:35]}  Bd1 {[%clk 0:01:38]} 37. Kf4 {[%clk 0:00:31]}  Be2 {[%clk 0:01:38]} 38. Ke3 {[%clk 0:00:25]}  Bd1 {[%clk 0:01:38]} 39. Kf4 {[%clk 0:00:21]}  Be2 {[%clk 0:01:37]} 40. h5 {[%clk 0:00:22]}  gxh5 {[%clk 0:01:36]} 41. gxh5 {[%clk 0:00:23]}  Ke6 {[%clk 0:01:37]} 42. Kg4 {[%clk 0:00:16]}  Bd1 {[%clk 0:01:36]} 43. Kf4 {[%clk 0:00:11]}  Be2 {[%clk 0:01:29]} 44. Bc3 {[%clk 0:00:11]}  Bd1 {[%clk 0:01:28]} 45. h6 {[%clk 0:00:07]}  Bc2 {[%clk 0:01:28]} 46. Ke3 {[%clk 0:00:08]}  Bg6 {[%clk 0:01:24]} 47. Kd4 {[%clk 0:00:08]}  b6 {[%clk 0:01:24]} 48. Be1 {[%clk 0:00:08]}  a5 {[%clk 0:01:23]} 49. Bg3 {[%clk 0:00:08]}  a4 {[%clk 0:01:22]} 50. Bc7 {[%clk 0:00:07]}  b5 {[%clk 0:01:22]} 51. Kc5 {[%clk 0:00:08]}  Bd3 {[%clk 0:01:23]} 52. Bg3 {[%clk 0:00:08]}  Kf7 {[%clk 0:01:06]} 53. Bf2 {[%clk 0:00:08]}  Kg6 {[%clk 0:01:01]} 54. Be3 {[%clk 0:00:08]}  Be2 {[%clk 0:01:02]} 55. f4 {[%clk 0:00:05]}  Kxh6 {[%clk 0:01:02]} 56. f5+ {[%clk 0:00:05]}  Kg7 {[%clk 0:01:02]} 57. Kxd5 {[%clk 0:00:05]}  Kf7 {[%clk 0:01:02]} 58. Ke5 {[%clk 0:00:06]}  Bc4 {[%clk 0:01:03]} 59. Bd2 {[%clk 0:00:06]}  Bb3 {[%clk 0:01:03]} 60. Bb4 {[%clk 0:00:07]}  Bd1 {[%clk 0:01:04]} 61. Bc3 {[%clk 0:00:08]}  Bb3 {[%clk 0:01:04]} 62. Bb4 {[%clk 0:00:08]}  Bd1 {[%clk 0:01:05]} 63. Kd6 {[%clk 0:00:09]}  Bb3 {[%clk 0:01:06]} 64. Bc3 {[%clk 0:00:09]}  Bc2 {[%clk 0:01:06]} 65. f6 {[%clk 0:00:09]}  Bb3 {[%clk 0:01:07]} 66. Kc5 {[%clk 0:00:10]}  Bc4 {[%clk 0:01:06]} 67. Kb4 {[%clk 0:00:11]}  Bf1 {[%clk 0:01:06]} 68. b3 {[%clk 0:00:11]}  axb3 {[%clk 0:01:06]} 69. Kxb3 {[%clk 0:00:12]}  Be2 {[%clk 0:01:07]} 70. Kb4 {[%clk 0:00:13]}  Bf1 {[%clk 0:01:07]} 71. Bd4 {[%clk 0:00:13]}  Be2 {[%clk 0:01:07]} 72. Kc5 {[%clk 0:00:14]}  Bf1 {[%clk 0:01:08]} 73. Bb2 {[%clk 0:00:14]}  Be2 {[%clk 0:01:08]} 74. Kb4 {[%clk 0:00:15]}  Bf1 {[%clk 0:01:08]} 75. Bc3 {[%clk 0:00:16]}  Be2 {[%clk 0:01:08]} 76. Ba1 {[%clk 0:00:17]}  Bf1 {[%clk 0:01:09]} 77. a4 {[%clk 0:00:18]}  bxa4 {[%clk 0:01:09]} 78. Kxa4 {[%clk 0:00:18]}  Bh3 {[%clk 0:01:09]} 79. Kb4 {[%clk 0:00:19]}  Bf5 {[%clk 0:01:10]} 80. Bb2 {[%clk 0:00:19]}  Bg6 {[%clk 0:01:11]} 81. Ba3 {[%clk 0:00:20]}  Bf5 {[%clk 0:01:11]} 82. Kb5 {[%clk 0:00:21]}  Bg6 {[%clk 0:01:12]} 83. Kb6 {[%clk 0:00:21]}  Bh7 {[%clk 0:01:13]} 84. Kb7 {[%clk 0:00:22]}  Bg6 {[%clk 0:01:14]} 85. Kb8 {[%clk 0:00:23]}  Bh7 {[%clk 0:01:15]} 86. Kc7 {[%clk 0:00:24]}  Bg6 {[%clk 0:01:16]} 87. Kd6 {[%clk 0:00:25]}  Bh7 {[%clk 0:01:16]} 88. Ke5 {[%clk 0:00:26]}  Bg6 {[%clk 0:01:17]} 89. Kf4 {[%clk 0:00:27]}  Bh7 {[%clk 0:01:18]} 90. Kg5 {[%clk 0:00:28]}  Bb1 {[%clk 0:01:18]} 91. Kh6 {[%clk 0:00:28]}  Ba2 {[%clk 0:01:19]} 92. Bb4 {[%clk 0:00:29]}  Bb1 {[%clk 0:01:20]} 93. Bc3 {[%clk 0:00:30]}  Ba2 {[%clk 0:01:20]} 94. Bb2 {[%clk 0:00:31]}  Bb1 {[%clk 0:01:21]} 95. Ba3 {[%clk 0:00:32]}  Ba2 {[%clk 0:01:22]} 96. Bb2 {[%clk 0:00:33]}  Bb1 {[%clk 0:01:22]} 97. Kg5 {[%clk 0:00:34]}  Ba2 {[%clk 0:01:23]} 98. Kf4 {[%clk 0:00:35]}  Bb1 {[%clk 0:01:24]} 99. Ke5 {[%clk 0:00:36]}  Bc2 {[%clk 0:01:24]} 100. Kd6 {[%clk 0:00:36]}  Bb1 {[%clk 0:01:25]} 101. Kc7 {[%clk 0:00:37]}  Bh7 {[%clk 0:01:25]} 102. Bc1 {[%clk 0:00:38]}  Bg6 {[%clk 0:01:26]} 103. Kc8 {[%clk 0:00:39]}  Bh7 {[%clk 0:01:27]} 104. Kb7 {[%clk 0:00:40]}  Kxf6 {[%clk 0:01:27]} 1/2-1/2


[Site "https://www.chess.com"]

[Event "Titled Tuesday Blitz April 26 Late 2022"]
[White "Bryakin, Mikhail"]
[Black "Sheng, Joshua"]
[WhiteFideId "4165314"]
[BlackFideId "2057360"]
[WhiteElo "2417"]
[BlackElo "2142"]
[Result "0-1"]
[Round "04"]
[TimeControl "180+1"]
[Date "2022.04.26"]
[WhiteClock "0:00:05"]
[BlackClock "0:00:15"]

1. e4 {[%clk 0:02:38]}  c5 {[%clk 0:02:59]} 2. Nf3 {[%clk 0:02:31]}  e6 {[%clk 0:02:58]} 3. d4 {[%clk 0:02:29]}  cxd4 {[%clk 0:02:59]} 4. Nxd4 {[%clk 0:02:29]}  a6 {[%clk 0:02:59]} 5. Bd3 {[%clk 0:02:28]}  Bc5 {[%clk 0:02:59]} 6. Nb3 {[%clk 0:02:24]}  Ba7 {[%clk 0:02:59]} 7. O-O {[%clk 0:02:25]}  Ne7 {[%clk 0:02:59]} 8. Nc3 {[%clk 0:02:24]}  O-O {[%clk 0:02:58]} 9. Qf3 {[%clk 0:02:23]}  Nbc6 {[%clk 0:02:58]} 10. Qg3 {[%clk 0:02:21]}  Nb4 {[%clk 0:02:57]} 11. Kh1 {[%clk 0:02:20]}  Nxd3 {[%clk 0:02:54]} 12. cxd3 {[%clk 0:02:21]}  d5 {[%clk 0:02:54]} 13. f4 {[%clk 0:02:16]}  b5 {[%clk 0:02:39]} 14. Ne2 {[%clk 0:02:07]}  dxe4 {[%clk 0:02:29]} 15. dxe4 {[%clk 0:02:01]}  f5 {[%clk 0:02:18]} 16. Be3 {[%clk 0:01:44]}  fxe4 {[%clk 0:02:17]} 17. Bxa7 {[%clk 0:01:43]}  Rxa7 {[%clk 0:02:17]} 18. Qe3 {[%clk 0:01:44]}  Rc7 {[%clk 0:02:12]} 19. Qxe4 {[%clk 0:01:43]}  Qd5 {[%clk 0:02:07]} 20. Qxd5 {[%clk 0:01:36]}  Nxd5 {[%clk 0:02:08]} 21. Rac1 {[%clk 0:01:28]}  Rcf7 {[%clk 0:02:05]} 22. g3 {[%clk 0:01:17]}  e5 {[%clk 0:02:04]} 23. Kg1 {[%clk 0:01:04]}  Bg4 {[%clk 0:01:54]} 24. Rf2 {[%clk 0:00:56]}  exf4 {[%clk 0:01:53]} 25. gxf4 {[%clk 0:00:54]}  Bxe2 {[%clk 0:00:55]} 26. Rxe2 {[%clk 0:00:48]}  Nxf4 {[%clk 0:00:55]} 27. Re3 {[%clk 0:00:46]}  g5 {[%clk 0:00:52]} 28. Nc5 {[%clk 0:00:43]}  Rc8 {[%clk 0:00:47]} 29. b4 {[%clk 0:00:37]}  Rc6 {[%clk 0:00:44]} 30. a3 {[%clk 0:00:37]}  h5 {[%clk 0:00:42]} 31. Rd1 {[%clk 0:00:34]}  g4 {[%clk 0:00:40]} 32. Re5 {[%clk 0:00:31]}  Nh3+ {[%clk 0:00:20]} 33. Kg2 {[%clk 0:00:31]}  Rf2+ {[%clk 0:00:20]} 34. Kg3 {[%clk 0:00:31]}  Rf3+ {[%clk 0:00:20]} 35. Kh4 {[%clk 0:00:32]}  Nf4 {[%clk 0:00:20]} 36. Rg5+ {[%clk 0:00:21]}  Kf7 {[%clk 0:00:16]} 37. Rf5+ {[%clk 0:00:15]}  Kg6 {[%clk 0:00:15]} 38. Rg5+ {[%clk 0:00:08]}  Kh6 {[%clk 0:00:15]} 39. Rxh5+ {[%clk 0:00:04]}  Nxh5 {[%clk 0:00:15]} 40. Kxg4 {[%clk 0:00:05]}  Rf4+ {[%clk 0:00:15]} 41. Kh3 {[%clk 0:00:05]}  Rg6 {[%clk 0:00:15]} 0-1


[Site "https://www.chess.com"]